bitfinex/quotes_SOLUSD_20250922
["timestamp","ask_amount","ask_price","bid_price","bid_amount"]
[1758539441772,2.11259826,222.89,222.88,36.1]
[1758539443399,2.11259826,222.9,222.88,36.1]
[1758539443591,2.11259826,222.9,222.89,0.66]
[1758539443776,4.48551179,222.94,222.89,0.66]
[1758539443978,2.11259826,222.9,222.89,0.66]
[1758539444913,2.11259826,222.9,222.87,0.66]
[1758539445078,4.48633186,222.9,222.88,35.38]
[1758539445383,2.11259826,222.89,222.88,36.04]
[1758539445586,26.0,222.91,222.88,36.04]
[1758539445786,2.11259826,222.89,222.88,36.04]
[1758539448199,28.11259826,222.91,222.88,36.04]
[1758539448397,2.11259826,222.9,222.88,36.04]
[1758539449980,2.11259826,222.9,222.89,35.34]
[1758539450879,6.59891499,222.9,222.89,35.34]
[1758539451281,6.59891499,222.9,222.86,0.66]
[1758539451501,6.59891499,222.9,222.83,4.48772606]
[1758539451502,2.11259826,222.88,222.87,35.32]
[1758539451706,2.11259826,222.89,222.87,35.32]
[1758539452090,2.11259826,222.9,222.88,0.66]
[1758539452621,2.11259826,222.91,222.88,0.66]
[1758539452800,30.4860175,222.92,222.88,0.66]
[1758539452997,2.11259826,222.91,222.87,39.80690209]
[1758539453305,26.0,222.92,222.88,0.66]
[1758539453306,28.11259826,222.92,222.88,0.66]
[1758539453508,28.11259826,222.92,222.89,0.66]
[1758539454415,32.59856676,222.92,222.89,0.66]
[1758539454817,32.59856676,222.92,222.87,35.98]
[1758539454983,32.59856676,222.92,222.88,0.66]
[1758539458509,2.11259826,222.9,222.87,35.32]
[1758539458818,2.11259826,222.89,222.88,35.26]
[1758539459023,2.11259826,222.89,222.87,0.68]
[1758539459024,28.11259826,222.89,222.85,0.68]
[1758539459212,2.11259826,222.88,222.86,35.92]
[1758539459511,15.81075407,222.92,222.87,35.24]
[1758539459715,2.11259826,222.88,222.87,35.92]
[1758539459934,2.11259826,222.88,222.87,35.24]
[1758539460225,2.11259826,222.88,222.87,35.92]
[1758539460427,26.0,222.95,222.87,40.40692062]
[1758539460718,2.11259826,222.92,222.88,0.68]
[1758539460896,2.11259826,222.92,222.89,0.68]
[1758539461090,26.0,222.9,222.89,0.68]
[1758539462008,2.11259826,222.92,222.89,0.68]
[1758539462712,26.0,222.9,222.89,0.68]
[1758539463116,2.11259826,222.92,222.89,0.68]
[1758539463320,26.0,222.91,222.89,0.68]
[1758539463504,28.11259826,222.91,222.89,0.68]
[1758539463906,2.11259826,222.91,222.89,0.68]
[1758539464497,26.0,222.9,222.89,0.68]
[1758539465206,17.98030096,222.98,222.89,7.27909719]
[1758539465398,8.4834544,222.97,222.9,2.79259826]
[1758539465598,3.01665776,222.97,222.91,35.92]
[1758539465813,2.11259826,222.98,222.92,0.68]
[1758539466119,3.01665776,222.99,222.92,2.79259826]
[1758539466417,2.11259826,222.99,222.94,4.48551179]
[1758539466596,5.12925602,222.99,222.95,35.92]
[1758539466799,5.12925602,222.99,222.96,0.68]
[1758539467017,5.12925602,222.99,222.95,35.24]
[1758539467224,5.12925602,222.99,222.97,0.68]
[1758539467521,5.12925602,222.99,222.94,0.68]
[1758539467522,2.11259826,222.98,222.94,0.68]
[1758539467722,2.11259826,222.96,222.92,0.68]
[1758539468036,2.11259826,222.93,222.92,35.22]
[1758539468922,2.11259826,222.93,222.89,0.68]
[1758539468923,2.11259826,222.93,222.91,35.22]
[1758539469304,2.11259826,222.93,222.91,35.9]
[1758539471116,2.11259826,222.93,222.92,0.68]
[1758539471423,2.11259826,222.93,222.91,35.22]
[1758539471919,26.0,222.94,222.92,0.68]
[1758539472223,32.59811354,222.94,222.91,35.22]
[1758539472425,32.59811354,222.94,222.91,35.9]
[1758539472614,32.59811354,222.94,222.92,0.68]
[1758539472817,30.48551528,222.94,222.91,35.22]
[1758539473023,32.59811354,222.94,222.91,0.68]
[1758539473324,32.59811354,222.94,222.91,35.88]
[1758539474223,26.52771329,222.94,222.91,35.88]
[1758539474729,24.41511503,222.94,222.91,0.68]
[1758539474915,2.11259826,222.93,222.91,35.86]
[1758539475227,24.41511503,222.94,222.91,35.86]
[1758539475422,2.11259826,222.93,222.91,35.86]
[1758539475599,2.11259826,222.93,222.91,0.68]
[1758539475805,6.59831474,222.93,222.91,0.68]
[1758539476019,6.59831474,222.93,222.91,0.66]
[1758539476801,9.62196057,222.93,222.9,35.18]
[1758539477026,6.59831474,222.93,222.91,0.66]
[1758539477227,6.59831474,222.93,222.92,0.66]
[1758539478309,9.62312808,222.93,222.92,0.66]
[1758539479428,9.62312808,222.93,222.9,35.84]
[1758539479617,9.62312808,222.93,222.91,0.66]
[1758539480844,9.62312808,222.93,222.84,82.71259826]
[1758539480845,26.0,222.9,222.89,35.18]
[1758539481012,26.0,222.9,222.88,35.18]
[1758539481337,2.11259826,222.89,222.88,35.18]
[1758539481515,2.11259826,222.89,222.88,35.84]
[1758539482136,26.0,222.9,222.88,35.84]
[1758539482435,32.59892716,222.9,222.89,0.66]
[1758539483311,2.11259826,222.9,222.89,0.66]
[1758539486427,2.11259826,222.9,222.88,35.18]
[1758539486612,2.11259826,222.9,222.88,35.84]
[1758539486820,6.59903401,222.9,222.88,35.84]
[1758539487518,6.59903401,222.9,222.88,0.66]
[1758539487727,6.59903401,222.9,222.87,35.18]
[1758539488037,6.59903401,222.9,222.87,35.9]
[1758539488532,1.35113976,222.89,222.87,35.9]
[1758539488839,5.83766728,222.89,222.87,35.9]
[1758539489336,5.83766728,222.89,222.88,0.72]
[1758539489537,4.48652752,222.89,222.87,35.18]
[1758539489736,5.83766728,222.89,222.87,35.18]
[1758539489939,5.83766728,222.89,222.87,35.9]
[1758539490340,5.83766728,222.89,222.85,0.72]
[1758539490544,5.83766728,222.89,222.87,35.18]
[1758539490736,5.83766728,222.89,222.88,0.72]
[1758539490935,5.83766728,222.89,222.87,35.18]
[1758539491145,5.83766728,222.89,222.88,0.72]
[1758539494743,26.0,222.86,222.83,35.18]
[1758539494943,1.35113976,222.84,222.83,35.18]
[1758539495444,1.35113976,222.84,222.83,35.9]
[1758539495629,1.35113976,222.84,222.83,0.72]
[1758539495830,1.35113976,222.84,222.83,35.18]
[1758539496242,1.35113976,222.84,222.81,0.72]
[1758539496434,1.35113976,222.83,222.82,35.9]
[1758539496634,5.83886582,222.83,222.76,4.48910126]
[1758539496834,1.35113976,222.82,222.8,0.72]
[1758539497032,1.35113976,222.82,222.81,35.18]
[1758539498353,5.83906723,222.82,222.81,35.9]
[1758539498650,1.35113976,222.82,222.81,35.9]
[1758539498855,5.83906723,222.82,222.81,35.9]
[1758539499426,5.83906723,222.82,222.81,0.72]
[1758539501736,1.35113976,222.82,222.81,0.72]
[1758539502066,1.35113976,222.83,222.81,0.72]
[1758539502245,1.35113976,222.83,222.81,35.18]
[1758539502446,1.35113976,222.83,222.82,0.72]
[1758539504034,5.83878435,222.84,222.82,0.72]
[1758539505333,5.83878435,222.84,222.81,35.18]
[1758539505536,5.83878435,222.84,222.82,0.72]
[1758539505748,5.83878435,222.84,222.81,33.16071]
[1758539506459,1.35113976,222.83,222.76,5.84027605]
[1758539506639,1.35113976,222.83,222.77,35.18]
[1758539507479,4.48764459,222.84,222.78,4.48873327]
[1758539507661,11.21730156,222.87,222.8,1.35113976]
[1758539507662,30.48692325,222.87,222.8,1.35113976]
[1758539507965,26.0,222.84,222.81,35.9]
[1758539508163,26.0,222.84,222.82,0.72]
[1758539508468,26.0,222.84,222.81,35.18]
[1758539508757,2.05113976,222.84,222.82,35.18]
[1758539508952,1.35113976,222.83,222.82,35.18]
[1758539509154,1.35113976,222.83,222.8,0.72]
[1758539509454,1.35113976,222.82,222.81,35.18]
[1758539509835,5.83892061,222.83,222.81,35.18]
[1758539510030,5.83892061,222.83,222.78,4.48873301]
[1758539510266,5.83892061,222.83,222.81,0.72]
[1758539510441,5.83892061,222.83,222.81,35.9]
[1758539511741,5.83892061,222.83,222.7,201.276]
[1758539511742,39.59559401,222.79,222.7,0.72]
[1758539511942,1.35113976,222.72,222.7,0.72]
[1758539512149,1.35113976,222.73,222.7,0.72]
[1758539512342,1.35113976,222.74,222.7,0.72]
[1758539512574,1.35113976,222.79,222.72,1.35113976]
[1758539512742,1.35113976,222.79,222.73,35.9]
[1758539512939,1.35113976,222.79,222.74,0.72]
[1758539513339,1.35113976,222.78,222.74,0.72]
[1758539513639,26.0,222.76,222.75,0.72]
[1758539513841,27.35113976,222.76,222.75,0.72]
[1758539514044,27.35113976,222.76,222.75,35.18]
[1758539514964,27.35113976,222.76,222.75,35.9]
[1758539515467,27.35113976,222.76,222.75,35.18]
[1758539515646,5.84032166,222.76,222.75,35.18]
[1758539516072,5.84032166,222.76,222.7,4.49027777]
[1758539516248,5.84032166,222.76,222.71,35.9]
[1758539516249,1.35113976,222.73,222.71,35.9]
[1758539516447,1.35113976,222.73,222.69,0.72]
[1758539516659,1.35113976,222.74,222.7,35.9]
[1758539516857,1.35113976,222.75,222.71,0.72]
[1758539517166,4.4891819,222.76,222.71,0.72]
[1758539517371,4.4891819,222.76,222.72,0.69]
[1758539517675,5.84032166,222.76,222.72,0.69]
[1758539518556,5.84032166,222.76,222.72,35.87]
[1758539518758,1.35113976,222.75,222.72,35.87]
[1758539519549,5.84057719,222.75,222.72,35.87]
[1758539520174,5.84057719,222.75,222.72,35.18]
[1758539520359,5.84057719,222.75,222.72,35.87]
[1758539520550,1.35113976,222.75,222.73,35.18]
[1758539520871,1.35113976,222.75,222.74,0.69]
[1758539521167,5.84027828,222.76,222.74,0.69]
[1758539521577,1.35113976,222.75,222.72,0.69]
[1758539521754,1.35113976,222.74,222.7,0.69]
[1758539521956,1.35113976,222.73,222.71,35.18]
[1758539522160,1.35113976,222.73,222.66,1.35113976]
[1758539522161,1.35113976,222.73,222.69,0.69]
[1758539522363,1.35113976,222.73,222.7,0.69]
[1758539522673,1.35113976,222.73,222.71,35.18]
[1758539523047,1.35113976,222.74,222.71,0.69]
[1758539523250,27.35113976,222.72,222.66,0.69]
[1758539523461,15.71343762,222.74,222.65,0.2]
[1758539523462,1.35113976,222.67,222.65,0.2]
[1758539523769,1.35113976,222.66,222.65,0.2]
[1758539524473,1.35113976,222.66,222.65,35.38]
[1758539524776,1.35113976,222.66,222.65,0.2]
[1758539525277,5.84229218,222.66,222.65,0.2]
[1758539527272,26.0,222.66,222.65,0.2]
[1758539528068,4.49115242,222.66,222.65,0.2]
[1758539529347,26.0,222.67,222.65,0.2]
[1758539530280,26.0,222.66,222.65,0.2]
[1758539531588,1.8012744,222.74,222.65,5.38124659]
[1758539531770,1.8012744,222.74,222.66,0.69]
[1758539531973,4.48933782,222.75,222.7,1.35113976]
[1758539532175,5.16933782,222.75,222.69,1.35113976]
[1758539532475,26.0,222.72,222.7,35.2]
[1758539532668,26.0,222.72,222.7,35.89]
[1758539532980,5.16933782,222.75,222.7,35.89]
[1758539533479,26.0,222.72,222.7,35.89]
[1758539534266,26.0,222.72,222.7,0.72]
[1758539534480,26.0,222.72,222.7,35.2]
[1758539534681,26.0,222.72,222.7,0.72]
[1758539534887,4.48996142,222.72,222.7,35.2]
[1758539535482,4.48996142,222.72,222.68,0.72]
[1758539535666,4.48996142,222.72,222.69,35.2]
[1758539535988,4.48996142,222.72,222.69,35.18]
[1758539536285,4.48974094,222.73,222.69,35.18]
[1758539536493,0.69,222.72,222.65,4.69133001]
[1758539536673,26.0,222.7,222.66,35.9]
[1758539536862,26.0,222.7,222.67,0.72]
[1758539537063,26.0,222.7,222.68,0.72]
[1758539537376,26.0,222.7,222.67,1.35113976]
[1758539537377,26.0,222.7,222.69,0.72]
[1758539537692,26.0,222.7,222.69,35.9]
[1758539538571,30.49016316,222.71,222.69,35.9]
[1758539538769,1.35113976,222.78,222.7,2.07113976]
[1758539538993,5.83987303,222.78,222.71,35.9]
[1758539539161,4.48873327,222.78,222.72,2.07113976]
[1758539539467,26.0,222.76,222.73,0.72]
[1758539539883,26.0,222.76,222.74,0.72]
[1758539540189,2.04113976,222.82,222.75,35.9]
[1758539540375,5.04664462,222.82,222.76,0.72]
[1758539540565,26.0,222.8,222.76,0.72]
[1758539540766,4.4885318,222.79,222.76,0.72]
[1758539541885,26.0,222.78,222.76,35.9]
[1758539542582,26.0,222.78,222.76,35.18]
[1758539542888,4.48893477,222.77,222.76,35.18]
[1758539543069,4.48893477,222.77,222.75,35.18]
[1758539543985,4.48893477,222.77,222.74,0.72]
[1758539544168,4.48893477,222.77,222.75,35.18]
[1758539544493,27.35113976,222.78,222.75,35.18]
[1758539544494,26.0,222.78,222.76,0.72]
[1758539544680,30.48880642,222.78,222.76,0.72]
[1758539545594,30.48880642,222.78,222.74,0.72]
[1758539545789,1.35113976,222.77,222.75,35.18]
[1758539546187,1.35113976,222.77,222.74,0.72]
[1758539546488,2.04113976,222.76,222.73,35.18]
[1758539546792,4.48953937,222.74,222.7,0.72]
[1758539546988,5.84067913,222.74,222.71,35.86]
[1758539547498,5.84067913,222.74,222.71,35.18]
[1758539547684,5.84067913,222.74,222.72,0.68]
[1758539548380,5.84047758,222.75,222.72,0.68]
[1758539548583,4.48933782,222.75,222.72,0.68]
[1758539548891,4.48933782,222.75,222.72,35.86]
[1758539549596,4.48933782,222.75,222.72,0.68]
[1758539549795,4.48933782,222.75,222.72,35.86]
[1758539550302,4.48913629,222.76,222.73,0.68]
[1758539550679,6.6027811,222.76,222.72,35.18]
[1758539550998,6.6027811,222.76,222.72,35.86]
[1758539551607,2.11364481,222.75,222.72,35.18]
[1758539552377,4.48953937,222.74,222.72,35.18]
[1758539552579,4.48953937,222.74,222.72,35.86]
[1758539552788,4.48953937,222.74,222.72,0.68]
[1758539552995,4.48953937,222.74,222.72,35.18]
[1758539553812,4.48953937,222.74,222.72,35.86]
[1758539556685,6.60318418,222.74,222.72,35.86]
[1758539557088,6.60318418,222.74,222.7,0.68]
[1758539557286,6.60318418,222.74,222.71,35.18]
[1758539557499,26.0,222.71,222.67,0.68]
[1758539557682,26.0,222.71,222.68,0.68]
[1758539558002,28.11364481,222.71,222.69,0.68]
[1758539558389,28.11364481,222.71,222.66,35.18]
[1758539558705,28.11364481,222.71,222.67,0.68]
[1758539558907,4.49034575,222.7,222.68,35.16]
[1758539559278,4.49034575,222.7,222.68,35.84]
[1758539560709,4.49034575,222.7,222.69,0.68]
[1758539560905,4.49034575,222.7,222.67,0.68]
[1758539561212,28.11364481,222.69,222.68,35.16]
[1758539561512,26.0,222.69,222.67,35.84]
[1758539561713,26.0,222.69,222.67,0.68]
[1758539561897,2.11364481,222.68,222.67,0.68]
[1758539562203,2.11364481,222.68,222.65,0.88]
[1758539562411,2.11364481,222.66,222.65,35.36]
[1758539563087,6.60479723,222.66,222.65,0.2]
[1758539563684,4.49115242,222.66,222.65,0.2]
[1758539563985,6.60479723,222.66,222.65,0.2]
[1758539567189,30.49115242,222.66,222.65,0.2]
[1758539567398,32.60479723,222.66,222.65,0.2]
[1758539568014,30.49115242,222.66,222.65,0.88]
[1758539569095,30.49115242,222.66,222.65,0.2]
[1758539569699,32.60479723,222.66,222.65,0.2]
[1758539570110,30.49115242,222.66,222.65,0.2]
[1758539571500,33.28479723,222.66,222.65,0.2]
[1758539573116,32.60479723,222.66,222.65,0.2]
[1758539573621,13.59559401,222.65,222.64,0.2]
[1758539573797,25.44027612,222.65,222.64,1e-08]
[1758539574005,26.12027612,222.65,222.64,1e-08]
[1758539574203,24.00663131,222.65,222.64,1e-08]
[1758539574421,26.11939948,222.65,222.64,1e-08]
[1758539575303,30.61075362,222.65,222.64,1e-08]
[1758539576209,26.0,222.63,222.62,1e-08]
[1758539576393,49.32575467,222.63,222.62,1e-08]
[1758539576599,48.76386335,222.63,222.62,1e-08]
[1758539577299,50.23542258,222.63,222.62,1e-08]
[1758539577721,47.44177777,222.63,222.62,1e-08]
[1758539577920,49.55542258,222.63,222.62,1e-08]
[1758539578522,32.60540243,222.63,222.62,1e-08]
[1758539578723,6.60540243,222.63,222.62,1e-08]
[1758539579100,32.60540243,222.63,222.62,1e-08]
[1758539583304,33.29540243,222.63,222.62,1e-08]
[1758539583504,32.60540243,222.63,222.62,1e-08]
[1758539583717,6.60540243,222.63,222.62,1e-08]
[1758539585730,32.60540243,222.63,222.62,1e-08]
[1758539586531,6.60540243,222.63,222.62,1e-08]
[1758539586936,46.89099644,222.63,222.62,1e-08]
[1758539587506,44.77735163,222.63,222.62,1e-08]
[1758539587714,46.89099644,222.63,222.62,1e-08]
[1758539591313,53.24797734,222.63,222.62,1e-08]
[1758539592143,53.24797734,222.63,222.6,0.2]
[1758539592144,39.59559401,222.61,222.6,0.2]
[1758539592441,17.82288363,222.61,222.6,0.2]
[1758539592618,18.51288363,222.61,222.6,0.2]
[1758539593011,21.85918324,222.61,222.6,1e-08]
[1758539593334,61.51129036,222.61,222.6,1e-08]
[1758539594227,64.52309569,222.61,222.6,1e-08]
[1758539595637,39.59559401,222.58,222.51,0.71]
[1758539595819,2.11364481,222.52,222.51,0.71]
[1758539597140,6.60762287,222.52,222.45,0.2]
[1758539597343,2.11364481,222.51,222.45,0.2]
[1758539597643,2.11364481,222.51,222.5,0.91]
[1758539599166,6.60782484,222.51,222.5,0.2]
[1758539600842,6.60782484,222.51,222.5,0.91]
[1758539605451,9.95629636,222.51,222.5,0.91]
[1758539605652,9.95629636,222.51,222.5,0.2]
[1758539605950,9.95629636,222.51,222.5,0.91]
[1758539606250,9.95634853,222.51,222.5,0.91]
[1758539606439,6.60782484,222.51,222.5,0.91]
[1758539607333,6.60782484,222.51,222.5,0.2]
[1758539609721,4.49418003,222.51,222.5,0.86]
[1758539609955,28.11364481,222.54,222.5,0.86]
[1758539610158,2.11364481,222.55,222.5,0.86]
[1758539610360,4.49259461,222.59,222.52,2.11364481]
[1758539610543,4.49259461,222.59,222.53,2.77364481]
[1758539610855,6.60623942,222.59,222.54,0.66]
[1758539612549,7.50560567,222.59,222.54,0.66]
[1758539613553,8.86024533,222.59,222.54,0.66]
[1758539614246,1.35463966,222.58,222.54,0.66]
[1758539615034,4.4929685,222.57,222.54,0.66]
[1758539616555,4.4929685,222.57,222.55,0.66]
[1758539616764,4.4929685,222.57,222.56,0.66]
[1758539620855,6.54760816,222.57,222.52,0.66]
[1758539621158,1.35463966,222.54,222.52,0.66]
[1758539621843,1.35463966,222.53,222.5,0.86]
[1758539622038,1.35463966,222.53,222.51,0.66]
[1758539622244,1.35463966,222.53,222.52,0.66]
[1758539622756,5.84841578,222.53,222.52,0.66]
[1758539624856,5.84841578,222.53,222.5,0.86]
[1758539625058,1.35463966,222.52,222.5,0.86]
[1758539626164,4.49418003,222.51,222.5,0.86]
[1758539627160,4.49418003,222.51,222.5,0.2]
[1758539630068,31.84881969,222.51,222.5,0.2]
[1758539630560,30.49418003,222.51,222.5,0.2]
[1758539630763,31.84881969,222.51,222.5,0.2]
[1758539633057,32.54881969,222.51,222.5,0.2]
[1758539633263,35.57344493,222.51,222.5,0.2]
[1758539633782,49.16903894,222.51,222.5,0.2]
[1758539635062,50.97209964,222.51,222.5,0.2]
[1758539641872,50.97209964,222.51,222.5,1e-08]
[1758539643778,3.02462524,222.51,222.5,0.72000001]
[1758539644068,26.0,222.52,222.5,0.72000001]
[1758539644249,1.35463966,222.54,222.5,0.72000001]
[1758539644454,4.37919128,222.54,222.5,0.72000001]
[1758539644870,1.35463966,222.53,222.5,0.72000001]
[1758539645072,26.0,222.52,222.5,0.72000001]
[1758539645272,4.49397806,222.52,222.5,0.72000001]
[1758539645468,30.49397806,222.52,222.5,0.72000001]
[1758539645665,3.02455012,222.54,222.5,0.72000001]
[1758539645666,4.49366866,222.54,222.5,0.72000001]
[1758539645867,7.5182168,222.54,222.5,0.72000001]
[1758539646271,4.49366866,222.54,222.5,0.72000001]
[1758539646583,1.35463966,222.53,222.5,0.72000001]
[1758539646970,5.84830832,222.54,222.5,0.72000001]
[1758539647180,4.49366866,222.54,222.5,0.72000001]
[1758539647388,5.84830832,222.54,222.5,0.72000001]
[1758539648785,5.84854017,222.53,222.5,0.72000001]
[1758539649362,4.49390051,222.53,222.5,0.72000001]
[1758539649568,1.35463966,222.52,222.5,0.72000001]
[1758539649768,1.35463966,222.52,222.51,0.72]
[1758539650067,1.35463966,222.52,222.5,1e-08]
[1758539650269,1.35463966,222.51,222.5,1e-08]
[1758539650968,4.49418003,222.51,222.5,1e-08]
[1758539651277,5.84881969,222.51,222.5,1e-08]
[1758539652168,6.51881969,222.51,222.5,1e-08]
[1758539652364,32.51881969,222.51,222.5,1e-08]
[1758539652569,35.54336783,222.51,222.5,1e-08]
[1758539652768,49.13896184,222.51,222.5,1e-08]
[1758539652983,50.94202254,222.51,222.5,1e-08]
[1758539653473,67.59603127,222.51,222.45,0.2]
[1758539653791,27.35463966,222.46,222.45,0.2]
[1758539654212,31.8498298,222.46,222.45,0.2]
[1758539657294,35.53437163,222.46,222.45,0.2]
[1758539658608,34.87437163,222.46,222.45,0.2]
[1758539658812,35.53437163,222.46,222.45,0.2]
[1758539660309,34.87437163,222.46,222.45,0.2]
[1758539660994,35.53437163,222.46,222.45,0.2]
[1758539661878,34.87437163,222.46,222.45,0.2]
[1758539663088,35.53437163,222.46,222.45,0.2]
[1758539665501,1.35463966,222.44,222.43,0.2]
[1758539665804,2.01463966,222.44,222.43,0.2]
[1758539666005,3.81818814,222.44,222.43,1e-08]
[1758539666214,6.84272997,222.44,222.43,1e-08]
[1758539667096,55.55832398,222.44,222.43,1e-08]
[1758539667278,30.49640287,222.4,222.39,0.2]
[1758539667482,34.87558436,222.4,222.39,0.2]
[1758539668582,38.46506614,222.4,222.39,0.2]
[1758539669404,37.11042648,222.4,222.39,0.2]
[1758539669703,1.80379247,222.41,222.39,0.89]
[1758539669901,3.15843213,222.41,222.4,0.69]
[1758539670107,33.65468947,222.41,222.4,0.69]
[1758539670307,31.850897,222.41,222.4,0.69]
[1758539674610,32.61641178,222.41,222.4,0.69]
[1758539675797,30.49625734,222.41,222.4,0.69]
[1758539677514,32.61641178,222.41,222.39,0.2]
[1758539677687,6.61655731,222.4,222.39,0.89]
[1758539678090,6.61655731,222.4,222.39,0.2]
[1758539678308,6.61655731,222.4,222.39,0.89]
[1758539681917,6.61655731,222.4,222.39,0.2]
[1758539682106,6.61655731,222.4,222.39,0.89]
[1758539683320,6.61655731,222.4,222.39,0.2]
[1758539684028,6.61655731,222.4,222.39,0.89]
[1758539685309,6.61655731,222.4,222.39,0.2]
[1758539688414,7.30655731,222.4,222.39,0.2]
[1758539688613,10.32983871,222.4,222.39,0.2]
[1758539689711,9.63983871,222.4,222.39,0.2]
[1758539690093,10.32983871,222.4,222.39,0.2]
[1758539691619,9.63983871,222.4,222.39,0.2]
[1758539691995,6.61655731,222.4,222.39,0.2]
[1758539692194,9.63983871,222.4,222.39,0.2]
[1758539692596,6.61655731,222.4,222.39,0.2]
[1758539692806,9.63983871,222.4,222.39,0.2]
[1758539693020,6.61655731,222.4,222.39,0.2]
[1758539693225,9.63983871,222.4,222.39,0.89]
[1758539694115,9.63983871,222.4,222.39,0.2]
[1758539694317,6.61655731,222.4,222.39,0.2]
[1758539694513,26.0,222.39,222.38,0.2]
[1758539694705,29.0232814,222.39,222.38,0.2]
[1758539694913,31.14343584,222.39,222.38,0.2]
[1758539695527,29.0232814,222.39,222.38,0.2]
[1758539695722,31.14343584,222.39,222.38,0.2]
[1758539696506,35.6400409,222.39,222.38,0.2]
[1758539700407,3.0232814,222.39,222.38,0.89]
[1758539701032,7.51988646,222.39,222.38,0.89]
[1758539701419,3.0232814,222.39,222.38,0.89]
[1758539703018,26.0,222.39,222.38,0.89]
[1758539703217,28.12015444,222.39,222.38,0.89]
[1758539704130,28.12015444,222.39,222.38,0.2]
[1758539704131,31.15119416,222.39,222.38,0.2]
[1758539705219,35.64779922,222.39,222.38,0.2]
[1758539706138,33.52764478,222.39,222.38,0.2]
[1758539706441,35.64779922,222.39,222.38,0.2]
[1758539709534,35.64779922,222.39,222.29,0.2]
[1758539709535,107.28249162,222.39,222.29,0.2]
[1758539709723,2.12015444,222.3,222.29,0.2]
[1758539709917,5.15119416,222.3,222.29,0.2]
[1758539710625,8.51987741,222.3,222.29,0.2]
[1758539711543,16.38484266,222.3,222.29,0.2]
[1758539712216,17.09484266,222.3,222.29,0.2]
[1758539712615,16.38484266,222.3,222.29,0.2]
[1758539712827,14.26468822,222.3,222.29,0.2]
[1758539713036,16.38484266,222.3,222.29,0.2]
[1758539714250,16.37615963,222.3,222.29,0.2]
[1758539715331,13.34511991,222.3,222.29,0.2]
[1758539716356,13.34511991,222.3,222.29,0.87]
[1758539718156,13.34106789,222.3,222.29,0.87]
[1758539718957,11.22091345,222.3,222.29,0.87]
[1758539719124,3.35921794,222.3,222.29,0.87]
[1758539719754,29.35921794,222.3,222.29,0.87]
[1758539720131,2.12015444,222.32,222.29,0.87]
[1758539720344,3.35782076,222.31,222.3,0.67]
[1758539720547,2.12015444,222.32,222.3,0.67]
[1758539720859,28.12015444,222.32,222.3,0.67]
[1758539721150,2.12015444,222.32,222.3,0.67]
[1758539721651,28.12015444,222.32,222.3,0.67]
[1758539722451,26.0,222.32,222.31,0.67]
[1758539722743,2.12015444,222.4,222.31,7.28837764]
[1758539722935,6.71494876,222.39,222.33,2.12015444]
[1758539723134,3.35747438,222.38,222.34,0.67]
[1758539723445,2.12015444,222.39,222.34,0.67]
[1758539723629,3.02174352,222.4,222.34,0.67]
[1758539723630,3.35739233,222.38,222.34,0.67]
[1758539723836,5.14189796,222.4,222.34,0.67]
[1758539724043,3.35739327,222.39,222.34,0.67]
[1758539724258,3.35739327,222.38,222.34,0.67]
[1758539724546,2.12015444,222.4,222.35,4.49741398]
[1758539724748,5.47754662,222.39,222.36,0.67]
[1758539725047,5.47754662,222.38,222.37,0.67]
[1758539725255,3.35739218,222.38,222.37,0.67]
[1758539725454,3.35739218,222.39,222.37,0.67]
[1758539725634,26.0,222.41,222.37,0.67]